bitfinex/quotes_ETHUSD_20230404
["timestamp","ask_amount","ask_price","bid_price","bid_amount"]
[1680621556454,12.00492218,1855.5,1854.8,0.22164]
[1680621556621,5.646,1855.3,1854.8,0.004]
[1680621556822,2.76602218,1855.2,1854.7,0.006]
[1680621557117,2.76602218,1855.2,1854.7,0.004]
[1680621557118,2.91695218,1855.2,1854.7,0.004]
[1680621557321,2.91695218,1855.2,1854.6,0.002]
[1680621557322,5.0,1855.1,1854.6,0.006]
[1680621557476,2.76602218,1855.0,1854.6,0.006]
[1680621557816,2.76602218,1855.0,1854.6,0.002]
[1680621557971,2.76602218,1855.0,1854.5,0.1]
[1680621558372,2.91696218,1855.0,1854.5,0.1]
[1680621558605,2.76602218,1855.0,1854.5,0.1]
[1680621558784,2.91696218,1855.0,1854.5,0.1]
[1680621559116,8.56296218,1855.0,1854.5,0.1]
[1680621559317,8.855,1854.8,1854.5,0.1]
[1680621559472,2.76902218,1854.8,1854.5,0.1]
[1680621559819,0.003,1854.9,1854.5,0.1]
[1680621559987,2.76602218,1854.9,1854.5,0.1]
[1680621560207,0.003,1855.1,1854.5,0.31568]
[1680621560409,2.76602218,1855.3,1854.5,0.31568]
[1680621560574,2.76602218,1855.3,1854.6,0.02196813]
[1680621560917,2.76602218,1855.1,1854.6,0.02196813]
[1680621561077,0.60935725,1855.7,1854.6,0.02196813]
[1680621561078,0.003,1855.2,1854.6,0.02196813]
[1680621561277,2.76602218,1855.1,1854.6,0.23763813]
[1680621563003,2.76602218,1855.1,1854.6,0.21567]
[1680621563208,3.0429244,1855.1,1854.6,0.21567]
[1680621563375,0.003,1855.3,1854.6,0.21567]
[1680621563575,2.76602218,1855.3,1854.6,0.21567]
[1680621564045,2.76602218,1855.1,1854.6,0.22167]
[1680621564197,0.27660222,1855.0,1854.5,0.32169]
[1680621564399,2.76602218,1855.1,1854.5,0.32169]
[1680621564599,2.76602218,1855.1,1854.5,0.106]
[1680621564795,2.76602218,1855.1,1854.5,0.102]
[1680621565419,8.41202218,1855.0,1854.5,0.1]
[1680621565627,3.0456244,1855.0,1854.5,0.1]
[1680621565827,3.1935644,1855.0,1854.5,0.1]
[1680621566438,8.8395644,1855.0,1854.5,0.1]
[1680621566622,12.0515644,1855.0,1854.5,0.1]
[1680621566838,5.646,1854.9,1854.5,0.1]
[1680621567040,2.76602218,1854.8,1854.5,0.1]
[1680621567844,2.91698218,1854.8,1854.5,0.1]
[1680621568121,5.646,1854.7,1854.5,0.1]
[1680621568340,2.76602218,1854.6,1854.5,0.1]
[1680621569658,11.77199218,1854.6,1854.5,0.1]
[1680621569854,11.77499218,1854.6,1854.5,0.1]
[1680621570061,11.62402218,1854.6,1854.5,0.1]
[1680621570244,2.76902218,1854.6,1854.5,0.1]
[1680621570454,2.76602218,1854.6,1854.5,0.1]
[1680621570633,8.0426244,1854.6,1854.5,0.1]
[1680621570959,8.1965944,1854.6,1854.5,0.1]
[1680621571257,17.9574444,1854.6,1854.5,0.1]
[1680621571961,18.1874444,1854.6,1854.5,0.1]
[1680621572123,22.4564444,1854.6,1854.5,0.1]
[1680621573226,21.8525444,1854.6,1854.5,0.1]
[1680621573725,21.6225444,1854.6,1854.5,0.1]
[1680621573925,2.76902218,1854.6,1854.5,0.1]
[1680621574147,0.003,1854.7,1854.5,0.1]
[1680621574319,2.76602218,1854.7,1854.5,0.1]
[1680621575174,2.76602218,1854.6,1854.5,0.1]
[1680621575677,2.76602218,1854.6,1854.5,0.31569]
[1680621575849,0.003,1854.8,1854.5,0.74707]
[1680621576055,2.76602218,1854.8,1854.5,0.17690405]
[1680621576376,2.76602218,1854.7,1854.5,0.1]
[1680621576575,11.76924442,1854.7,1854.5,0.1]
[1680621576736,12.07417442,1854.7,1854.5,0.1]
[1680621576941,9.30792,1854.6,1854.5,0.1]
[1680621577139,12.07694218,1854.6,1854.5,0.1]
[1680621577367,11.62402218,1854.6,1854.5,0.1]
[1680621577769,11.77499218,1854.6,1854.5,0.1]
[1680621577977,11.62402218,1854.6,1854.5,0.1]
[1680621578380,17.00499218,1854.6,1854.5,0.1]
[1680621578587,17.91084218,1854.6,1854.5,0.1]
[1680621579182,16.42185,1854.4,1854.3,0.1]
[1680621579386,0.45313,1853.7,1853.6,0.1]
[1680621579599,2.76602218,1853.7,1853.6,0.1]
[1680621579885,2.91706218,1853.7,1853.6,0.1]
[1680621580391,12.30415218,1853.7,1853.6,0.1]
[1680621580593,15.30715218,1853.7,1853.6,0.1]
[1680621582559,15.07715218,1853.7,1853.6,0.1]
[1680621582745,0.003,1853.7,1853.6,0.1]
[1680621582942,0.15103,1853.9,1853.6,0.1]
[1680621583358,0.15402,1854.0,1853.6,0.1]
[1680621583560,0.003,1854.2,1853.6,0.31579]
[1680621583758,0.2,1854.3,1853.6,3.51340218]
[1680621584093,0.2,1854.3,1853.7,1.02064902]
[1680621584296,0.2,1854.3,1853.7,0.6693088]
[1680621584502,0.351,1854.3,1853.7,0.0279788]
[1680621584649,0.653,1854.3,1853.7,0.0279788]
[1680621584849,9.206,1854.3,1853.7,0.2377588]
[1680621585047,0.203,1854.3,1853.7,0.6693188]
[1680621585246,0.2,1854.3,1853.7,0.6693188]
[1680621585486,0.351,1854.3,1853.7,0.0219788]
[1680621585689,5.0,1854.2,1853.7,0.0219788]
[1680621585906,5.15401,1854.2,1853.7,0.0219788]
[1680621586069,2.76602218,1854.1,1853.7,0.2377588]
[1680621586459,5.003,1854.2,1853.7,0.2377588]
[1680621586677,2.76602218,1854.1,1853.7,0.09891268]
[1680621586905,2.76602218,1854.1,1853.7,0.0219788]
[1680621587211,2.76602218,1854.1,1853.7,0.2377588]
[1680621587354,0.003,1854.2,1853.7,0.6693188]
[1680621587553,2.76602218,1854.2,1853.7,0.6693188]
[1680621587793,2.76602218,1854.2,1853.8,0.06693188]
[1680621588005,2.76602218,1854.2,1853.9,0.21575]
[1680621588501,2.76602218,1854.2,1853.9,0.64727]
[1680621588686,0.2,1854.3,1853.9,0.64727]
[1680621589202,0.2,1854.3,1853.9,1.14727]
[1680621589352,0.2,1854.3,1854.1,1.51015]
[1680621591594,0.2,1854.3,1854.1,0.6472]
[1680621593712,0.00578725,1855.3,1854.5,1.50979]
[1680621594203,0.00578725,1855.3,1854.6,2.76602218]
[1680621594404,0.54052364,1855.4,1854.8,1.50955]
[1680621594605,0.00302325,1855.5,1855.0,0.21562]
[1680621594796,0.00578725,1855.6,1855.0,0.21562]
[1680621594994,0.00578725,1855.6,1855.0,0.7266655]
[1680621595366,0.00578725,1855.6,1855.0,0.2954055]
[1680621595565,0.00578725,1855.7,1855.0,0.21562]
[1680621595862,0.00578725,1855.7,1855.0,0.64688]
[1680621595863,2.77180943,1855.7,1855.0,0.64688]
[1680621596094,2.77180943,1855.7,1855.0,0.66884339]
[1680621597407,0.00578725,1855.7,1855.0,0.66884339]
[1680621597607,0.00578725,1855.9,1855.0,0.66884339]
[1680621597908,2.77180943,1855.9,1855.3,0.64677]
[1680621598090,2.77180943,1855.9,1855.3,0.66872983]
[1680621598668,0.00578725,1855.9,1855.3,0.66872983]
[1680621599018,0.15663725,1856.1,1855.3,0.82184581]
[1680621599178,0.15086,1856.0,1855.3,0.82184581]
[1680621599386,0.15664725,1856.0,1855.3,0.82184581]
[1680621599695,0.00578725,1856.0,1855.3,0.82184581]
[1680621599893,10.09421433,1856.3,1855.4,0.08218458]
[1680621600067,2.91688218,1856.1,1855.4,0.29775458]
[1680621600267,0.29168822,1856.0,1855.4,0.72892458]
[1680621600512,0.29168822,1856.0,1855.4,0.73092458]
[1680621600669,3.0577104,1856.0,1855.4,0.21757]
[1680621600864,2.76602218,1856.0,1855.4,0.64674]
[1680621601181,2.76602218,1856.0,1855.4,0.64874]
[1680621602006,2.76602218,1856.0,1855.4,0.65274]
[1680621602191,7.76714507,1856.3,1855.4,0.804648]
[1680621602192,0.003,1856.2,1855.4,0.804648]
[1680621602396,2.76602218,1856.2,1855.4,0.754648]
[1680621602568,0.009,1856.2,1855.4,3.51467018]
[1680621602779,1.56714507,1856.3,1855.7,0.21554]
[1680621602981,4.33316725,1856.3,1855.6,0.21555]
[1680621603181,4.57308688,1856.3,1855.6,0.21555]
[1680621603435,1.41630507,1856.3,1855.6,0.64667]
[1680621603781,1.41330507,1856.3,1855.6,0.64667]
[1680621603992,1.40730507,1856.3,1855.6,0.64667]
[1680621604431,1.40730507,1856.3,1855.7,8.41202218]
[1680621604721,1.40730507,1856.3,1855.8,4.50522222]
[1680621604881,1.40730507,1856.3,1855.9,0.5]
[1680621605081,1.40730507,1856.3,1856.0,1.53053156]
[1680621605880,1.40730507,1856.3,1856.1,0.5]
[1680621606095,1.40730507,1856.3,1856.2,1.5303892]
[1680621606297,0.00050507,1856.3,1856.2,10.3629503]
[1680621606497,0.00050507,1856.3,1856.2,10.5909503]
[1680621606730,0.11000001,1857.1,1856.2,13.5909503]
[1680621606886,0.11000001,1857.1,1856.7,5.646]
[1680621607085,0.11000001,1857.1,1856.8,2.78796428]
[1680621607287,0.11000001,1857.1,1856.9,0.64623]
[1680621607733,0.11000001,1857.1,1857.0,0.02193974]
[1680621608030,0.11000001,1857.1,1857.0,0.23733974]
[1680621608188,0.11000001,1857.1,1857.0,0.11029671]
[1680621608523,0.11000001,1857.1,1856.9,0.2154]
[1680621608724,0.11000001,1857.1,1856.9,0.64623]
[1680621609397,0.11000001,1857.1,1856.9,0.66817092]
[1680621609604,0.11000001,1857.1,1856.9,3.4341931]
[1680621609799,0.11000001,1857.1,1857.0,0.34341931]
[1680621610001,0.11000001,1857.1,1857.0,0.2154]
[1680621610223,0.11000001,1857.1,1857.0,0.6462]
[1680621610420,0.11000001,1857.1,1857.0,0.2154]
[1680621610608,0.11000001,1857.1,1857.0,0.6462]
[1680621611018,0.11000001,1857.1,1857.0,0.2154]
[1680621611333,0.11000001,1857.1,1857.0,0.6462]
[1680621611484,0.11000001,1857.1,1857.0,0.2154]
[1680621611693,0.56094558,1856.9,1856.8,0.21542]
[1680621611916,0.56094558,1856.9,1856.8,0.64626]
[1680621612334,0.56094558,1856.9,1856.8,0.21542]
[1680621613130,0.56094558,1856.9,1856.7,10.4732]
[1680621613347,0.56094558,1856.9,1856.8,0.21542]
[1680621613837,0.56094558,1856.9,1856.7,0.21542]
[1680621614198,0.56094558,1856.9,1856.6,0.43089]
[1680621614397,0.56094558,1856.9,1856.6,0.64633]
[1680621614990,0.56094558,1856.9,1856.6,0.21544]
[1680621615196,0.56094558,1856.9,1856.4,0.86185]
[1680621615509,0.56094558,1856.9,1856.6,1.50812]
[1680621615819,0.56094558,1856.9,1856.6,4.27414218]
[1680621616030,0.56094558,1856.9,1856.6,1.50812]
[1680621617530,0.56094558,1856.9,1856.6,1.53006446]
[1680621617708,0.56094558,1856.9,1856.7,8.56502863]
[1680621617911,0.56094558,1856.9,1856.8,9.53819]
[1680621618267,0.56094558,1856.9,1856.8,4.5298921]
[1680621618546,0.56094558,1856.9,1856.8,4.27397218]
[1680621619139,0.56094558,1856.9,1856.8,9.94191428]
[1680621619448,0.56094558,1856.9,1856.8,11.16703235]
[1680621619748,0.00094558,1856.9,1856.8,11.16703235]
[1680621619919,0.00094558,1856.9,1856.8,14.39703235]
[1680621620367,0.00094558,1856.9,1856.8,14.16703235]
[1680621620809,0.00094558,1856.9,1856.8,14.89703235]
[1680621621663,1e-08,1857.1,1856.9,0.5]
[1680621621864,1e-08,1857.1,1857.0,12.30383218]
[1680621622035,1e-08,1857.1,1857.0,22.91733218]
[1680621622366,3e-08,1857.3,1857.0,25.91733218]
[1680621622575,3e-08,1857.3,1857.2,5.646]
[1680621622726,3e-08,1857.3,1857.2,9.91965218]
[1680621622921,3e-08,1857.3,1857.2,13.14965218]
[1680621623150,3e-08,1857.3,1857.2,1.50763]
[1680621623350,3e-08,1857.3,1857.2,2.48236632]
[1680621623547,3e-08,1857.3,1857.2,1.50763]
[1680621624026,3e-08,1857.3,1857.2,4.27365218]
[1680621624602,3e-08,1857.3,1857.2,9.86965218]
[1680621624801,3e-08,1857.3,1857.2,10.09965218]
[1680621625527,3e-08,1857.3,1857.2,13.12158956]
[1680621625706,3e-08,1857.3,1857.2,14.69312184]
[1680621627323,0.11000001,1858.1,1857.2,14.69312184]
[1680621627488,0.08000003,1858.5,1857.8,5.646]
[1680621627689,0.03000003,1858.5,1857.9,19.54685129]
[1680621627946,0.03000003,1858.5,1858.0,1.50692]
[1680621628151,0.03000003,1858.5,1858.0,4.51292]
[1680621628347,0.03000003,1858.5,1858.0,0.22127]
[1680621628707,0.03000003,1858.5,1858.0,0.64584]
[1680621629051,0.03000003,1858.5,1858.0,4.59052909]
[1680621629428,0.03000003,1858.5,1858.1,0.02192675]
[1680621629748,0.03000003,1858.5,1858.2,0.21525]
[1680621630053,0.03000003,1858.5,1858.2,0.64577]
[1680621630821,0.03000003,1858.5,1858.1,0.23719675]
[1680621631150,0.03000003,1858.5,1858.1,0.02192675]
[1680621631311,0.03000003,1858.5,1857.9,0.002]
[1680621631312,2.76602218,1858.4,1857.9,0.002]
[1680621631508,2.76602218,1858.4,1857.7,29.83]
[1680621631509,0.42728222,1858.3,1857.7,29.83]
[1680621631710,3.0426244,1858.3,1857.7,0.65195]
[1680621631958,2.76602218,1858.3,1857.7,0.64595]
[1680621632112,2.91669218,1858.3,1857.7,0.21531]
[1680621632309,0.04200003,1858.5,1857.8,2.76602218]
[1680621632565,0.04200003,1858.5,1857.7,6.35874026]
[1680621632566,2.76602218,1858.4,1857.7,0.71474026]
[1680621632711,0.03000003,1858.5,1857.8,2.76602218]
[1680621632916,2.76602218,1858.4,1858.0,1.50698]
[1680621633138,0.03000003,1858.5,1857.9,0.21528]
[1680621633340,0.03000003,1858.5,1857.9,3.41189218]
[1680621633661,2.79602221,1858.5,1857.9,0.66779911]
[1680621634041,2.76602218,1858.4,1857.6,0.86129]
[1680621634342,2.76602218,1858.4,1857.6,0.21533]
[1680621634343,0.15068,1858.3,1857.6,0.21533]
[1680621634656,3.06739218,1858.2,1857.4,40.71454]
[1680621634813,0.15069,1858.2,1857.5,8.31709456]
[1680621635014,0.30136,1858.2,1857.5,5.55107238]
[1680621635257,0.27709913,1858.3,1857.6,0.98574724]
[1680621635479,0.03000003,1858.5,1857.6,0.98574724]
[1680621635480,0.03000003,1858.5,1857.7,0.64595]
[1680621635679,0.03000003,1858.5,1857.8,2.76602218]
[1680621635880,0.03000003,1858.5,1858.0,0.64584]
[1680621636049,0.03000003,1858.5,1858.0,0.21527]
[1680621636248,0.03000003,1858.5,1858.0,0.23719793]
[1680621636449,0.03000003,1858.5,1858.0,0.66776793]
[1680621637096,0.03000003,1858.5,1858.0,0.23719793]
[1680621637396,0.03000003,1858.5,1858.0,1.02402494]
[1680621637555,0.03000003,1858.5,1858.0,0.02192793]
[1680621637556,0.18065003,1858.5,1858.0,0.02192793]
[1680621637752,0.03000003,1858.5,1858.0,0.02192793]
[1680621638085,0.03000003,1858.5,1858.0,0.23720793]
[1680621638286,0.03000003,1858.5,1858.0,0.66777793]
[1680621638446,0.18066003,1858.5,1858.0,0.08870572]
[1680621638647,0.18066003,1858.5,1858.0,0.02192793]
[1680621639598,2.76602218,1858.4,1857.7,0.002]
[1680621639891,2.76602218,1858.4,1857.6,6.23360724]
[1680621639892,0.45204,1858.2,1857.6,0.006]
[1680621640072,3.21806218,1858.2,1857.6,0.21533]
[1680621640239,3.69837135,1858.3,1857.6,0.64599]
[1680621640450,3.54470135,1858.3,1857.6,0.64599]
[1680621640648,0.15366,1858.4,1857.8,0.21529]
[1680621640849,0.03000003,1858.5,1857.8,0.6459]
[1680621641453,0.03000003,1858.5,1858.0,5.646]
[1680621641701,0.03000003,1858.5,1858.1,2.76602218]
[1680621641912,0.03000003,1858.5,1858.2,0.92236222]
[1680621643299,0.03000003,1858.5,1858.2,0.94428779]
[1680621643466,0.03000003,1858.5,1858.3,2.76602218]
[1680621643802,0.03000003,1858.5,1858.4,0.21523]
[1680621643950,0.03000003,1858.5,1858.4,1.50665]
[1680621644319,0.03000003,1858.5,1858.4,10.91273184]
[1680621644605,0.55301582,1859.3,1858.5,0.05192203]
[1680621644821,0.006,1859.3,1858.8,5.646]
[1680621645099,0.11900001,1859.4,1858.9,10.14826218]
[1680621645251,0.11000001,1859.4,1858.9,10.88717949]
[1680621645457,0.11000001,1859.4,1859.1,0.64546]
[1680621645669,0.11000001,1859.4,1859.1,3.41148218]
[1680621645891,0.11000001,1859.4,1859.3,0.64539]
[1680621646099,0.11000001,1859.4,1859.3,0.21513]
[1680621646393,0.11000001,1859.4,1859.3,0.64539]
[1680621646706,0.11000001,1859.4,1859.3,2.4138526]
[1680621648058,0.11000001,1859.4,1859.2,9.52993595]
[1680621648059,0.11000001,1859.4,1859.2,1.096]
[1680621648371,0.11000001,1859.4,1859.2,1.094]
[1680621648653,0.15062,1859.0,1858.5,0.002]
[1680621648799,0.15062,1859.0,1858.1,0.43052]
[1680621649158,1.50346308,1859.1,1858.4,5.646]
[1680621649448,1.50346308,1859.1,1858.7,1.088]
[1680621649632,1.50346308,1859.1,1858.7,1.3032]
[1680621649949,1.49446308,1859.1,1858.7,1.3032]
[1680621650100,1.49446308,1859.1,1858.7,7.3796]
[1680621650300,1.49446308,1859.1,1858.7,6.9492]
[1680621650505,1.49446308,1859.1,1858.8,6.34092]
[1680621650720,1.49446308,1859.1,1858.8,6.55611]
[1680621651367,1.49446308,1859.1,1858.8,9.32213218]
[1680621651511,1.49446308,1859.1,1858.9,0.02191731]
[1680621651708,1.49446308,1859.1,1859.0,8.41202218]
[1680621651984,1.49446308,1859.1,1859.0,0.84339395]
[1680621652117,1.49446308,1859.1,1859.0,3.84802218]
[1680621652660,1.49446308,1859.1,1859.0,4.01318218]
[1680621653032,1.49446308,1859.1,1859.0,9.65918218]
[1680621653416,1.49446308,1859.1,1859.0,1.032]
[1680621653826,1.49446308,1859.1,1859.0,0.03578461]
[1680621654222,1.64507308,1859.1,1859.0,0.03578461]
[1680621654426,1.65897039,1859.1,1859.0,0.03578461]
[1680621654840,1.65897039,1859.1,1858.6,0.2152]
[1680621655049,1.65897039,1859.1,1858.5,0.21521]
[1680621655221,1.65897039,1859.1,1858.3,3.0]
[1680621655222,1.80958039,1859.1,1858.3,3.0]
[1680621655420,0.18095804,1859.0,1858.4,0.21523]
[1680621655735,0.63279804,1859.0,1858.2,0.008]
[1680621655949,0.0632798,1858.9,1858.2,2.98127218]
[1680621656126,0.0632798,1858.9,1858.2,0.21525]
[1680621656127,0.2139098,1858.9,1858.2,0.21525]
[1680621656455,0.5151598,1858.9,1858.1,0.21526]
[1680621656671,0.5151598,1858.9,1858.0,16.78866]
[1680621656829,0.78325893,1858.9,1858.0,16.3581]
[1680621657161,0.07832589,1858.8,1858.1,0.02192675]
[1680621657453,0.15063,1858.8,1858.1,0.23718675]
[1680621657658,0.15063,1858.8,1858.1,0.02192675]
[1680621657817,0.15063,1858.8,1858.1,0.66772675]
[1680621658257,0.15063,1858.8,1858.1,0.23718675]
[1680621658458,0.15063,1858.8,1858.1,3.29742564]
[1680621658827,0.15063,1858.8,1858.1,2.86688564]
[1680621659163,0.45189,1858.8,1858.4,0.345]
[1680621659460,3.21791218,1858.8,1858.4,0.345]
[1680621661080,2.91665218,1858.8,1858.4,0.345]
[1680621661673,0.15063,1858.8,1858.2,0.64575]
[1680621661962,0.5151698,1858.9,1858.2,0.21525]
[1680621662271,2.97993198,1858.9,1858.2,0.21525]
[1680621662564,2.98893198,1858.9,1858.2,0.64577]
[1680621662751,0.2979932,1858.8,1858.2,0.64577]
[1680621663347,3.21464538,1858.8,1858.2,0.21525]
[1680621663523,0.60258,1858.7,1858.5,0.198]
[1680621663725,0.45195,1858.6,1857.8,14.1607]
[1680621663954,0.32146454,1858.7,1857.9,0.64588]
[1680621664168,0.30126,1858.9,1857.9,2.06195]
[1680621664169,0.009,1858.9,1857.9,2.06195]
[1680621664464,0.15063,1858.8,1858.2,0.42025]
[1680621664819,0.009,1858.9,1858.3,8.41202218]
[1680621665025,0.215258,1859.0,1858.5,0.21521]
[1680621665624,0.215258,1859.0,1858.5,0.64566]
[1680621665970,0.215258,1859.0,1858.5,0.21521]
[1680621666124,0.215258,1859.0,1858.5,0.21522]
[1680621666464,0.215258,1859.0,1858.7,0.329]
[1680621667062,0.215258,1859.0,1858.7,0.5442]
[1680621667228,0.215258,1859.0,1858.7,0.329]
[1680621668443,0.215258,1859.0,1858.7,0.5442]
[1680621668664,0.215258,1859.0,1858.7,0.329]
[1680621669175,0.215258,1859.0,1858.7,0.97459]
[1680621669419,0.215258,1859.0,1858.8,0.097459]
[1680621669583,0.215258,1859.0,1858.9,0.21518]
[1680621669938,0.215258,1859.0,1858.9,3.41156218]
[1680621670141,0.215258,1859.0,1858.9,12.39656218]
[1680621670390,0.215258,1859.0,1858.9,12.62656218]
[1680621670561,0.215258,1859.0,1858.9,13.9754914]
[1680621672307,0.215258,1859.0,1858.9,8.0994914]
[1680621672603,0.11000001,1859.4,1858.9,5.33346922]
[1680621672757,0.11000001,1859.4,1859.0,3.0]
[1680621672944,0.11000001,1859.4,1859.0,4.04850692]
[1680621673368,0.11000001,1859.4,1859.0,0.21516]
[1680621673562,0.11000001,1859.4,1859.0,0.64549]
[1680621673989,0.11000001,1859.4,1859.1,2.76602218]
[1680621674195,0.11000001,1859.4,1859.3,0.21513]
[1680621674422,0.11000001,1859.4,1859.3,0.64539]
[1680621674594,0.11000001,1859.4,1859.3,0.757829]
[1680621674860,0.11000001,1859.4,1859.3,0.327569]
[1680621675379,0.11000001,1859.4,1859.3,3.52385118]
[1680621675590,2.79849385,1860.1,1859.3,11.73959118]
[1680621675763,41.78678018,1860.2,1859.3,11.73959118]
[1680621675764,40.11300001,1860.2,1859.9,9.871]
[1680621675979,40.11300001,1860.2,1860.1,5.646]
[1680621676194,40.11300001,1860.2,1860.1,9.64964535]
[1680621676404,39.26602029,1860.2,1860.1,10.73980535]
[1680621676570,39.26602029,1860.2,1860.1,13.73980535]
[1680621677308,0.11900001,1860.3,1860.2,2.16484935]
[1680621677595,1e-08,1860.3,1860.2,14.02190153]
[1680621677803,1e-08,1860.3,1860.2,16.62990153]
[1680621678116,1e-08,1860.3,1860.2,16.74031665]
[1680621678721,1e-08,1860.3,1860.2,16.51031665]
[1680621679029,1e-08,1860.3,1860.2,8.09829447]
[1680621679240,1e-08,1860.3,1860.2,2.608]
[1680621679526,1e-08,1860.3,1860.1,0.23893317]
[1680621679527,1e-08,1860.3,1860.1,0.02190317]
[1680621679693,1e-08,1860.3,1860.1,3.23693317]
[1680621680277,1e-08,1860.3,1860.1,0.21503]
[1680621680879,1e-08,1860.3,1860.1,0.21504]
[1680621681132,1e-08,1860.3,1860.0,1.971]
[1680621681429,0.26809914,1860.3,1860.0,1.971]
[1680621682181,0.35680906,1860.3,1860.0,1.971]
[1680621682631,0.36580906,1860.3,1860.0,1.971]
[1680621682832,0.27709914,1860.3,1860.0,1.971]
[1680621683337,2.76602218,1860.2,1860.0,1.971]
[1680621683511,2.92554218,1860.2,1860.0,1.971]
[1680621684031,0.26809913,1860.1,1859.5,0.002]
[1680621684233,3.03412131,1860.1,1859.5,0.21511]
[1680621684539,3.36248544,1860.1,1859.5,0.23702023]
[1680621685242,3.09438631,1860.1,1859.7,2.805]
[1680621685535,0.009,1860.1,1859.8,0.02190671]
[1680621685689,1e-08,1860.3,1859.8,3.00299889]
[1680621685690,0.00900001,1860.3,1859.8,3.00299889]
[1680621685884,1e-08,1860.3,1859.9,8.71232207]
[1680621686129,1e-08,1860.3,1860.0,0.23695435]
[1680621686433,1e-08,1860.3,1860.0,4.41295435]
[1680621686987,1e-08,1860.3,1860.0,7.17897653]
[1680621687301,1e-08,1860.3,1860.0,4.19790435]
[1680621687609,1e-08,1860.3,1860.0,4.41295435]
[1680621687813,1e-08,1860.3,1860.0,4.19790435]
[1680621688024,2.76602219,1860.3,1860.0,4.176]
[1680621688252,0.27660222,1860.2,1859.8,0.002]
[1680621688529,0.70687622,1860.2,1859.6,0.21509]
[1680621688740,0.70687622,1860.2,1859.6,0.536599]
[1680621689236,0.70687622,1860.2,1859.6,0.966799]
[1680621689437,0.70687622,1860.2,1859.9,4.215]
[1680621689651,0.439274,1860.2,1859.9,4.215]
[1680621690704,0.439274,1860.2,1859.9,4.43006]
[1680621690907,0.430274,1860.2,1859.9,10.07606]
[1680621691117,0.430274,1860.2,1859.9,7.19608218]
[1680621691425,0.430274,1860.2,1860.0,0.93464822]
[1680621692369,0.430274,1860.2,1860.0,1.36474822]
[1680621692569,0.430274,1860.2,1860.1,0.66702317]
[1680621692712,7.4e-05,1860.2,1860.1,9.30904535]
[1680621692911,7.4e-05,1860.2,1860.1,13.61297771]
[1680621693171,7.4e-05,1860.2,1860.1,1.32583553]
[1680621693311,7.4e-05,1860.2,1860.1,0.23694317]
[1680621693506,7.4e-05,1860.2,1860.1,0.02190317]
[1680621693738,7.4e-05,1860.2,1860.1,0.23694317]
[1680621693946,7.4e-05,1860.2,1860.1,0.66702317]
[1680621694553,7.4e-05,1860.2,1860.1,0.02190317]
[1680621694757,7.4e-05,1860.2,1860.0,5.414]
[1680621694939,7.4e-05,1860.2,1860.1,0.89510514]
[1680621695145,7.4e-05,1860.2,1860.1,3.89510514]
[1680621695319,7.4e-05,1860.2,1860.1,4.32518514]
[1680621695785,7.4e-05,1860.2,1860.1,7.09120732]
[1680621696116,7.4e-05,1860.2,1860.1,12.96720732]
[1680621697118,7.4e-05,1860.2,1860.1,7.32120732]
[1680621697648,7.4e-05,1860.2,1860.1,7.09120732]
[1680621697864,7.4e-05,1860.2,1860.1,4.32518514]
[1680621698020,7.4e-05,1860.2,1860.1,1.32518514]
[1680621698367,7.4e-05,1860.2,1860.0,5.416]
[1680621698522,7.4e-05,1860.2,1860.0,5.414]
[1680621699130,7.4e-05,1860.2,1859.9,0.002]
[1680621699335,7.4e-05,1860.2,1859.9,0.21505]
[1680621699580,7.4e-05,1860.2,1859.9,8.62707218]
[1680621699739,7.4e-05,1860.2,1860.0,0.86270722]
[1680621699973,7.4e-05,1860.2,1859.9,0.21506]
[1680621700115,7.4e-05,1860.2,1860.0,7.56]
[1680621701061,7.4e-05,1860.2,1860.0,7.77504]
[1680621701627,7.4e-05,1860.2,1860.0,8.595756]
[1680621701820,7.4e-05,1860.2,1860.0,8.380716]
[1680621702172,7.4e-05,1860.2,1860.0,7.56]
[1680621703781,7.4e-05,1860.2,1860.0,7.562]
[1680621703981,7.4e-05,1860.2,1860.0,7.56]
[1680621704368,7.4e-05,1860.2,1860.1,0.21504]
[1680621704544,7.4e-05,1860.2,1860.1,0.64512]
[1680621705432,1e-08,1860.3,1860.1,0.64512]
[1680621705647,1e-08,1860.3,1860.1,0.81755217]
[1680621705848,1e-08,1860.3,1860.1,3.58357435]
[1680621706739,1e-08,1860.3,1860.2,11.64202218]
[1680621706943,1e-08,1860.3,1860.2,4.27123218]
[1680621707249,0.009,1861.3,1860.2,16.64223218]
[1680621707450,0.11000001,1861.4,1860.6,3.65466]
[1680621707667,0.11900001,1861.4,1860.9,1.50462]
[1680621708005,2.76602218,1861.3,1860.8,0.21495]
[1680621708138,0.27660222,1861.2,1861.0,10.429]
[1680621708476,0.11000001,1861.4,1861.0,10.94016053]
[1680621709285,0.26042001,1861.4,1861.0,10.94016053]
[1680621709444,0.57026001,1861.4,1861.0,10.94016053]
[1680621710180,2.76602218,1861.3,1861.0,10.94016053]
[1680621710333,0.42704222,1861.2,1861.0,10.94016053]
[1680621710540,3.2020644,1861.2,1861.0,10.94016053]
[1680621712247,3.1930644,1861.2,1861.0,9.32261824]
[1680621712469,0.16243,1861.3,1861.0,9.32261824]
[1680621712670,0.11000001,1861.4,1861.0,9.53754824]
[1680621713045,0.26042001,1861.4,1861.0,9.32261824]
[1680621713265,0.26042001,1861.4,1861.0,9.22261824]
[1680621713792,2.94314719,1861.4,1861.0,9.22261824]
[1680621713998,3.10256719,1861.4,1861.0,9.22261824]
[1680621714546,2.76602218,1861.3,1861.0,9.22261824]
[1680621714747,2.91645218,1861.3,1861.0,9.22261824]
[1680621714948,3.21731218,1861.3,1861.0,9.22261824]
[1680621715146,0.32173122,1861.2,1861.0,9.22261824]
[1680621715393,11.15612,1861.1,1860.9,0.008]
[1680621715696,3.0,1861.0,1860.1,11.47093]
[1680621715889,0.45142,1860.8,1860.1,13.118533]
[1680621716106,0.45142,1860.8,1860.1,13.122533]
[1680621716404,0.15047,1860.8,1860.1,13.552613]
[1680621716547,0.14241069,1860.8,1860.1,13.554613]
[1680621716746,0.51768376,1860.8,1860.1,12.909503]
[1680621716942,0.45146,1860.6,1860.1,0.006]
[1680621717201,0.45151,1860.4,1860.1,0.006]